[Event "*** Titled Tuesday Blitz"]
[Site "Chess.com"]
[Date "2020.12.01"]
[Round "1"]
[White "j_coca"]
[Black "Thjop"]
[Result "1-0"]
[WhiteElo "2339"]
[BlackElo "2622"]
[TimeControl "180+1"]
[EndTime "10:06:41 PST"]
[Termination "j_coca won by resignation"]

1. f4 {[%clk 0:02:58.8]} 1... d5 {[%clk 0:02:58.4]} 2. Nf3 {[%clk 0:02:46.4]}
2... g6 {[%clk 0:02:58.4]} 3. e3 {[%clk 0:02:43.7]} 3... Bg7 {[%clk 0:02:58.4]}
4. d4 {[%clk 0:02:43.5]} 4... Nh6 {[%clk 0:02:57.9]} 5. Bd3 {[%clk 0:02:36.8]}
5... Bf5 {[%clk 0:02:57.1]} 6. O-O {[%clk 0:02:36.3]} 6... O-O {[%clk
0:02:52.4]} 7. c3 {[%clk 0:02:35.6]} 7... Nd7 {[%clk 0:02:50.2]} 8. Qc2 {[%clk
0:02:35.5]} 8... c5 {[%clk 0:02:48.5]} 9. Nbd2 {[%clk 0:02:34.8]} 9... Qb6
{[%clk 0:02:43]} 10. Kh1 {[%clk 0:02:34.3]} 10... Rac8 {[%clk 0:02:39.2]} 11.
Qb1 {[%clk 0:02:32.4]} 11... c4 {[%clk 0:02:01.4]} 12. Bc2 {[%clk 0:02:30.5]}
12... Qe6 {[%clk 0:01:52.8]} 13. Ne5 {[%clk 0:02:26.9]} 13... Bxc2 {[%clk
0:01:50.3]} 14. Qxc2 {[%clk 0:02:26.5]} 14... Nxe5 {[%clk 0:01:49.6]} 15. fxe5
{[%clk 0:02:25.8]} 15... f6 {[%clk 0:01:50.1]} 16. exf6 {[%clk 0:02:22]} 16...
exf6 {[%clk 0:01:49.2]} 17. e4 {[%clk 0:02:21.1]} 17... f5 {[%clk 0:01:45.9]}
18. e5 {[%clk 0:02:20.8]} 18... Nf7 {[%clk 0:01:33.6]} 19. Nf3 {[%clk
0:02:19.4]} 19... Qe7 {[%clk 0:01:30.6]} 20. h4 {[%clk 0:02:16.1]} 20... Rc6
{[%clk 0:01:25.5]} 21. Bf4 {[%clk 0:02:15.3]} 21... Nd8 {[%clk 0:01:25]} 22. Bg5
{[%clk 0:02:14.4]} 22... Qd7 {[%clk 0:01:24.5]} 23. Rae1 {[%clk 0:02:14]} 23...
Ne6 {[%clk 0:01:24.2]} 24. Bd2 {[%clk 0:02:13.8]} 24... h6 {[%clk 0:01:21.6]}
25. Qc1 {[%clk 0:02:13]} 25... Kh7 {[%clk 0:01:21.3]} 26. Nh2 {[%clk 0:02:13.2]}
26... Qe7 {[%clk 0:01:15.9]} 27. g3 {[%clk 0:02:13.3]} 27... b5 {[%clk
0:01:15.2]} 28. a3 {[%clk 0:02:12.5]} 28... a5 {[%clk 0:01:15.2]} 29. Re2 {[%clk
0:02:12.5]} 29... Rb6 {[%clk 0:01:14.3]} 30. Qe1 {[%clk 0:02:04.3]} 30... Rf7
{[%clk 0:01:13.3]} 31. g4 {[%clk 0:02:02.2]} 31... f4 {[%clk 0:01:08.6]} 32. Nf3
{[%clk 0:02:02.1]} 32... Qd7 {[%clk 0:01:02.9]} 33. Rg2 {[%clk 0:02:00.5]} 33...
Bf8 {[%clk 0:01:02.8]} 34. g5 {[%clk 0:02:00.2]} 34... h5 {[%clk 0:01:02.1]} 35.
Nh2 {[%clk 0:01:58.1]} 35... b4 {[%clk 0:00:52.5]} 36. axb4 {[%clk 0:01:57.3]}
36... axb4 {[%clk 0:00:52.9]} 37. Rgf2 {[%clk 0:01:58.2]} 37... bxc3 {[%clk
0:00:51.5]} 38. bxc3 {[%clk 0:01:59.1]} 38... Rb2 {[%clk 0:00:43.2]} 39. Bc1
{[%clk 0:01:55.2]} 39... Rxf2 {[%clk 0:00:42.5]} 40. Rxf2 {[%clk 0:01:56.1]}
40... Qa4 {[%clk 0:00:40.1]} 41. Qf1 {[%clk 0:01:54.5]} 41... Qa1 {[%clk
0:00:36.3]} 42. Bd2 {[%clk 0:01:52.4]} 42... Qa3 {[%clk 0:00:29.1]} 43. Qb1
{[%clk 0:01:43.2]} 43... Qb3 {[%clk 0:00:26.7]} 44. Qa1 {[%clk 0:01:39.1]} 44...
Ba3 {[%clk 0:00:25.9]} 45. Be1 {[%clk 0:01:38.1]} 45... Bc1 {[%clk 0:00:23.3]}
46. Kg2 {[%clk 0:01:35.2]} 46... Be3 {[%clk 0:00:21.7]} 47. Rb2 {[%clk
0:01:34.9]} 47... f3+ {[%clk 0:00:17.3]} 48. Nxf3 {[%clk 0:01:35]} 48... Nf4+
{[%clk 0:00:17.5]} 49. Kh2 {[%clk 0:01:30.3]} 49... Qxb2+ {[%clk 0:00:16.5]} 50.
Qxb2 {[%clk 0:01:29.8]} 50... Nd3 {[%clk 0:00:17.4]} 51. Qe2 {[%clk 0:01:25]}
51... Rxf3 {[%clk 0:00:16.5]} 52. Qxf3 {[%clk 0:01:24.6]} 52... Bf4+ {[%clk
0:00:14.9]} 53. Bg3 {[%clk 0:01:23.3]} 53... Bxg3+ {[%clk 0:00:13.5]} 54. Kxg3
{[%clk 0:01:23]} 54... Kg7 {[%clk 0:00:14.4]} 55. Qf6+ {[%clk 0:01:22.5]} 1-0

[Event "*** Titled Tuesday Blitz"]
[Site "Chess.com"]
[Date "2020.12.01"]
[Round "1"]
[White "elamier"]
[Black "DanielDardha2005"]
[Result "0-1"]
[WhiteElo "2310"]
[BlackElo "2634"]
[TimeControl "180+1"]
[EndTime "10:06:41 PST"]
[Termination "DanielDardha2005 won on time"]

1. e4 {[%clk 0:03:00.3]} 1... c5 {[%clk 0:02:58.3]} 2. Nf3 {[%clk 0:02:59.5]}
2... Nc6 {[%clk 0:02:58.3]} 3. d4 {[%clk 0:02:58.7]} 3... cxd4 {[%clk
0:02:59.2]} 4. Nxd4 {[%clk 0:02:59.3]} 4... Nf6 {[%clk 0:02:59.5]} 5. Nc3 {[%clk
0:02:56.9]} 5... e5 {[%clk 0:02:58.9]} 6. Ndb5 {[%clk 0:02:52.1]} 6... d6 {[%clk
0:02:59]} 7. a4 {[%clk 0:02:44]} 7... Be7 {[%clk 0:02:47.9]} 8. Bg5 {[%clk
0:02:37.9]} 8... a6 {[%clk 0:02:35.1]} 9. Bxf6 {[%clk 0:02:33.9]} 9... gxf6
{[%clk 0:02:36]} 10. Na3 {[%clk 0:02:32.7]} 10... f5 {[%clk 0:02:33.7]} 11. Qh5
{[%clk 0:02:09.1]} 11... fxe4 {[%clk 0:02:14.6]} 12. Bc4 {[%clk 0:02:03.3]}
12... O-O {[%clk 0:02:14.3]} 13. Nxe4 {[%clk 0:01:58.4]} 13... d5 {[%clk
0:01:56.9]} 14. O-O-O {[%clk 0:01:45.4]} 14... Be6 {[%clk 0:01:48.7]} 15. h4
{[%clk 0:01:24.4]} 15... f6 {[%clk 0:01:32.6]} 16. Nc3 {[%clk 0:01:11]} 16...
Nd4 {[%clk 0:01:27.6]} 17. Bd3 {[%clk 0:00:49.6]} 17... Rf7 {[%clk 0:01:26.6]}
18. Nab1 {[%clk 0:00:38.6]} 18... Rc8 {[%clk 0:01:25.6]} 19. g4 {[%clk
0:00:36.8]} 19... b5 {[%clk 0:01:21.1]} 20. g5 {[%clk 0:00:31.8]} 20... b4
{[%clk 0:01:20]} 21. g6 {[%clk 0:00:23]} 21... Rg7 {[%clk 0:01:18.1]} 22. gxh7+
{[%clk 0:00:22.2]} 22... Kh8 {[%clk 0:01:17.5]} 23. Rdg1 {[%clk 0:00:21.4]}
23... Bf8 {[%clk 0:00:55.4]} 24. Rxg7 {[%clk 0:00:20.5]} 24... Bxg7 {[%clk
0:00:56.3]} 25. Rg1 {[%clk 0:00:15.6]} 25... bxc3 {[%clk 0:00:50.3]} 26. Rxg7
{[%clk 0:00:13.3]} 26... cxb2+ {[%clk 0:00:43.7]} 27. Kd1 {[%clk 0:00:13.6]}
27... Kxg7 {[%clk 0:00:39.7]} 28. Qg6+ {[%clk 0:00:02.5]} 28... Kh8 {[%clk
0:00:39.3]} 0-1

[Event "*** Titled Tuesday Blitz"]
[Site "Chess.com"]
[Date "2020.12.01"]
[Round "1"]
[White "ElGasanov"]
[Black "PenguinPacks"]
[Result "1-0"]
[WhiteElo "2732"]
[BlackElo "2374"]
[TimeControl "180+1"]
[EndTime "10:06:43 PST"]
[Termination "ElGasanov won by resignation"]

1. d4 {[%clk 0:03:00.3]} 1... Nf6 {[%clk 0:02:59.8]} 2. Nf3 {[%clk 0:02:59.1]}
2... e6 {[%clk 0:02:59.8]} 3. Bg5 {[%clk 0:02:58.5]} 3... Be7 {[%clk 0:02:56.9]}
4. c4 {[%clk 0:02:57.5]} 4... d5 {[%clk 0:02:52.3]} 5. e3 {[%clk 0:02:54.1]}
5... b6 {[%clk 0:02:49]} 6. cxd5 {[%clk 0:02:42.2]} 6... Nxd5 {[%clk 0:02:47.4]}
7. Bxe7 {[%clk 0:02:36.2]} 7... Qxe7 {[%clk 0:02:48.3]} 8. Bb5+ {[%clk
0:02:27.6]} 8... c6 {[%clk 0:02:46.8]} 9. Bd3 {[%clk 0:02:26]} 9... Qb4+ {[%clk
0:02:19.5]} 10. Qd2 {[%clk 0:02:21.4]} 10... Qxd2+ {[%clk 0:02:12.5]} 11. Nbxd2
{[%clk 0:02:22.3]} 11... Nb4 {[%clk 0:02:06.5]} 12. Be4 {[%clk 0:02:17.3]} 12...
Ba6 {[%clk 0:01:59.4]} 13. Ne5 {[%clk 0:02:10]} 13... f6 {[%clk 0:01:42.9]} 14.
Nec4 {[%clk 0:02:07.8]} 14... Ke7 {[%clk 0:01:32.7]} 15. a3 {[%clk 0:01:54.8]}
15... Nd5 {[%clk 0:01:26]} 16. b4 {[%clk 0:01:54.5]} 16... Nd7 {[%clk
0:01:21.7]} 17. O-O {[%clk 0:01:45.8]} 17... Rac8 {[%clk 0:01:15.3]} 18. Rfc1
{[%clk 0:01:43]} 18... c5 {[%clk 0:01:05.5]} 19. dxc5 {[%clk 0:01:40.2]} 19...
bxc5 {[%clk 0:01:06.4]} 20. Na5 {[%clk 0:01:37.1]} 20... cxb4 {[%clk 0:00:26.7]}
21. Nc6+ {[%clk 0:01:36.4]} 21... Kd6 {[%clk 0:00:26.3]} 22. Bxd5 {[%clk
0:01:34.4]} 22... exd5 {[%clk 0:00:25.2]} 23. Nxb4 {[%clk 0:01:34]} 23... Rxc1+
{[%clk 0:00:19.7]} 24. Rxc1 {[%clk 0:01:34.9]} 24... Rc8 {[%clk 0:00:19.2]} 25.
Rd1 {[%clk 0:01:27.4]} 25... Bb7 {[%clk 0:00:17.4]} 26. Nb3 {[%clk 0:01:21.1]}
26... Nb6 {[%clk 0:00:12.5]} 27. Nd4 {[%clk 0:01:13.9]} 27... a5 {[%clk
0:00:08]} 28. Nd3 {[%clk 0:01:04.8]} 28... g6 {[%clk 0:00:08.6]} 29. Rb1 {[%clk
0:01:03]} 29... Kc7 {[%clk 0:00:07.3]} 30. Ne6+ {[%clk 0:00:41.3]} 30... Kb8
{[%clk 0:00:07.5]} 31. Rxb6 {[%clk 0:00:37.8]} 31... Rc3 {[%clk 0:00:07.4]} 32.
Nec5 {[%clk 0:00:37]} 32... Kc7 {[%clk 0:00:07.1]} 33. Rxb7+ {[%clk 0:00:36.8]}
33... Kc6 {[%clk 0:00:08]} 1-0

[Event "*** Titled Tuesday Blitz"]
[Site "Chess.com"]
[Date "2020.12.01"]
[Round "1"]
[White "Legendinunknown"]
[Black "hleol"]
[Result "1-0"]
[WhiteElo "2666"]
[BlackElo "2329"]
[TimeControl "180+1"]
[EndTime "10:06:43 PST"]
[Termination "Legendinunknown won by resignation"]

1. d4 {[%clk 0:02:59.9]} 1... d5 {[%clk 0:02:59.5]} 2. c4 {[%clk 0:02:59.4]}
2... c6 {[%clk 0:02:59.6]} 3. Nf3 {[%clk 0:02:59.6]} 3... Nf6 {[%clk 0:02:58.9]}
4. Nc3 {[%clk 0:02:59.8]} 4... e6 {[%clk 0:02:58.2]} 5. Bg5 {[%clk 0:02:58.9]}
5... Be7 {[%clk 0:02:56]} 6. e3 {[%clk 0:02:58.3]} 6... Nbd7 {[%clk 0:02:55.2]}
7. Qc2 {[%clk 0:02:58.1]} 7... h6 {[%clk 0:02:54]} 8. Bh4 {[%clk 0:02:57.6]}
8... O-O {[%clk 0:02:53]} 9. Bd3 {[%clk 0:02:57.2]} 9... dxc4 {[%clk 0:02:51.1]}
10. Bxc4 {[%clk 0:02:57.2]} 10... b5 {[%clk 0:02:51.8]} 11. Bd3 {[%clk
0:02:56.7]} 11... Bb7 {[%clk 0:02:52.3]} 12. O-O {[%clk 0:02:54.5]} 12... a6
{[%clk 0:02:49]} 13. Rad1 {[%clk 0:02:52.9]} 13... Qb6 {[%clk 0:02:38]} 14. e4
{[%clk 0:02:48.7]} 14... Rac8 {[%clk 0:02:15.6]} 15. e5 {[%clk 0:02:44.5]} 15...
Nd5 {[%clk 0:02:14.2]} 16. Nxd5 {[%clk 0:02:31]} 16... cxd5 {[%clk 0:02:13.4]}
17. Qe2 {[%clk 0:02:26.8]} 17... Bxh4 {[%clk 0:02:09.4]} 18. Nxh4 {[%clk
0:02:27]} 18... b4 {[%clk 0:02:01.9]} 19. Kh1 {[%clk 0:02:20.7]} 19... Qd8
{[%clk 0:01:55.3]} 20. Qg4 {[%clk 0:02:18.3]} 20... Nb6 {[%clk 0:01:53.6]} 21.
f4 {[%clk 0:02:17.1]} 21... Nc4 {[%clk 0:01:52.8]} 22. Rf3 {[%clk 0:01:55.3]}
22... f5 {[%clk 0:01:36.2]} 23. Bxf5 {[%clk 0:01:30.1]} 23... exf5 {[%clk
0:01:33.3]} 24. Nxf5 {[%clk 0:01:31]} 24... Rxf5 {[%clk 0:01:22.6]} 25. Qxf5
{[%clk 0:01:30.7]} 25... Nxb2 {[%clk 0:01:20]} 26. Re1 {[%clk 0:01:29.3]} 26...
Qc7 {[%clk 0:01:09.3]} 27. h3 {[%clk 0:01:19.7]} 27... Nc4 {[%clk 0:01:00.6]}
28. Rg3 {[%clk 0:01:15.9]} 28... Nd2 {[%clk 0:00:53.7]} 29. Kh2 {[%clk
0:01:04.8]} 29... Ne4 {[%clk 0:00:52.8]} 30. Rg6 {[%clk 0:01:04.3]} 30... Qf7
{[%clk 0:00:50.3]} 31. Qxf7+ {[%clk 0:01:00.3]} 31... Kxf7 {[%clk 0:00:51.2]}
32. Rb6 {[%clk 0:01:00.2]} 32... Ba8 {[%clk 0:00:49.8]} 33. f5 {[%clk
0:00:56.6]} 33... Rc2 {[%clk 0:00:47.9]} 34. Rxb4 {[%clk 0:00:55.4]} 34... Rxa2
{[%clk 0:00:45.2]} 35. Rc1 {[%clk 0:00:51.5]} 35... Ng5 {[%clk 0:00:37.7]} 36.
Rc7+ {[%clk 0:00:50.3]} 36... Kg8 {[%clk 0:00:38.3]} 37. Rb8+ {[%clk 0:00:49.5]}
37... Kh7 {[%clk 0:00:38.8]} 38. f6 {[%clk 0:00:43.3]} 38... Nf3+ {[%clk
0:00:32.7]} 39. Kg3 {[%clk 0:00:42.8]} 1-0

[Event "*** Titled Tuesday Blitz"]
[Site "Chess.com"]
[Date "2020.12.01"]
[Round "1"]
[White "moro182"]
[Black "underdogchss"]
[Result "1-0"]
[WhiteElo "2713"]
[BlackElo "2368"]
[TimeControl "180+1"]
[EndTime "10:06:44 PST"]
[Termination "moro182 won by resignation"]

1. d4 {[%clk 0:02:56]} 1... Nf6 {[%clk 0:02:58.5]} 2. Bf4 {[%clk 0:02:56.6]}
2... d5 {[%clk 0:02:50.3]} 3. e3 {[%clk 0:02:55]} 3... e6 {[%clk 0:02:49.8]} 4.
Nf3 {[%clk 0:02:54.8]} 4... Bd6 {[%clk 0:02:47.3]} 5. Nbd2 {[%clk 0:02:54.8]}
5... Bxf4 {[%clk 0:02:34.9]} 6. exf4 {[%clk 0:02:55.7]} 6... Qd6 {[%clk
0:02:34.4]} 7. g3 {[%clk 0:02:55.4]} 7... O-O {[%clk 0:02:32.5]} 8. Bd3 {[%clk
0:02:55.5]} 8... b6 {[%clk 0:02:30.4]} 9. Qe2 {[%clk 0:02:54.8]} 9... c5 {[%clk
0:02:26.9]} 10. c3 {[%clk 0:02:53.7]} 10... a5 {[%clk 0:02:26]} 11. Ne5 {[%clk
0:02:50.4]} 11... Ba6 {[%clk 0:02:25.6]} 12. O-O {[%clk 0:02:49.2]} 12... Bxd3
{[%clk 0:02:25]} 13. Qxd3 {[%clk 0:02:50.1]} 13... Nbd7 {[%clk 0:02:22]} 14. Kg2
{[%clk 0:02:45.9]} 14... c4 {[%clk 0:02:05.4]} 15. Qe2 {[%clk 0:02:39.8]} 15...
b5 {[%clk 0:02:05.2]} 16. g4 {[%clk 0:02:39.9]} 16... g6 {[%clk 0:02:01.4]} 17.
h4 {[%clk 0:02:38.8]} 17... h5 {[%clk 0:01:53]} 18. g5 {[%clk 0:02:37.4]} 18...
Ne8 {[%clk 0:01:52.7]} 19. Nxd7 {[%clk 0:02:37.2]} 19... Qxd7 {[%clk 0:01:52.6]}
20. Nf3 {[%clk 0:02:38.1]} 20... Ng7 {[%clk 0:01:51.1]} 21. Ne5 {[%clk
0:02:37.9]} 21... Qe8 {[%clk 0:01:46.7]} 22. b3 {[%clk 0:02:36.2]} 22... f6
{[%clk 0:01:44.8]} 23. Nf3 {[%clk 0:02:32.8]} 23... Nf5 {[%clk 0:01:42.6]} 24.
bxc4 {[%clk 0:02:32.8]} 24... dxc4 {[%clk 0:01:33.8]} 25. Rfe1 {[%clk
0:02:32.4]} 25... Ra6 {[%clk 0:01:33]} 26. a4 {[%clk 0:02:32.3]} 26... Qc6
{[%clk 0:01:21.3]} 27. axb5 {[%clk 0:02:31.6]} 27... Nxh4+ {[%clk 0:01:21]} 28.
Kg3 {[%clk 0:02:26.7]} 28... Nf5+ {[%clk 0:01:16.7]} 29. Kh3 {[%clk 0:02:26.3]}
29... Qxb5 {[%clk 0:01:15.6]} 30. Rab1 {[%clk 0:02:24.4]} 30... Qd5 {[%clk
0:01:15.2]} 31. gxf6 {[%clk 0:02:23.5]} 31... Rxf6 {[%clk 0:01:10.1]} 32. Rb8+
{[%clk 0:02:17.2]} 32... Kg7 {[%clk 0:01:09.9]} 33. Ng5 {[%clk 0:02:12.9]} 33...
Nd6 {[%clk 0:00:47.3]} 34. Qe5 {[%clk 0:02:02.5]} 34... Nf7 {[%clk 0:00:30.2]}
35. Qxd5 {[%clk 0:01:23]} 35... exd5 {[%clk 0:00:29.4]} 36. Re7 {[%clk
0:01:23.9]} 36... Rxf4 {[%clk 0:00:27]} 37. Rbb7 {[%clk 0:01:04.8]} 37... a4
{[%clk 0:00:16.2]} 38. Nxf7 {[%clk 0:00:56.6]} 38... Rxf7 {[%clk 0:00:17.1]} 39.
Rxf7+ {[%clk 0:00:56.1]} 39... Kh6 {[%clk 0:00:17.5]} 40. f4 {[%clk 0:00:55.3]}
1-0

[Event "*** Titled Tuesday Blitz"]
[Site "Chess.com"]
[Date "2020.12.01"]
[Round "1"]
[White "Sokoloco"]
[Black "champ2005"]
[Result "0-1"]
[WhiteElo "2456"]
[BlackElo "3022"]
[TimeControl "180+1"]
[EndTime "10:06:45 PST"]
[Termination "champ2005 won by resignation"]

1. b3 {[%clk 0:02:59.4]} 1... d5 {[%clk 0:02:56.7]} 2. Bb2 {[%clk 0:02:59.3]}
2... Bg4 {[%clk 0:02:57.3]} 3. Nf3 {[%clk 0:02:47.5]} 3... Nf6 {[%clk
0:02:55.7]} 4. e3 {[%clk 0:02:46.3]} 4... Nbd7 {[%clk 0:02:55.1]} 5. Be2 {[%clk
0:02:45.9]} 5... e6 {[%clk 0:02:54.2]} 6. O-O {[%clk 0:02:42.8]} 6... Bd6 {[%clk
0:02:54.3]} 7. d4 {[%clk 0:02:43]} 7... O-O {[%clk 0:02:53.4]} 8. c4 {[%clk
0:02:43.2]} 8... c6 {[%clk 0:02:50.1]} 9. Nbd2 {[%clk 0:02:42.5]} 9... Qe7
{[%clk 0:02:49.2]} 10. Ne5 {[%clk 0:02:37]} 10... Bxe2 {[%clk 0:02:48.8]} 11.
Qxe2 {[%clk 0:02:37.9]} 11... Rfe8 {[%clk 0:02:46.8]} 12. Ndf3 {[%clk
0:02:37.7]} 12... Ne4 {[%clk 0:02:46.2]} 13. h3 {[%clk 0:02:23.7]} 13... Rad8
{[%clk 0:02:44.4]} 14. Nxd7 {[%clk 0:02:17]} 14... Qxd7 {[%clk 0:02:45.3]} 15.
Nd2 {[%clk 0:02:17.1]} 15... Nf6 {[%clk 0:02:43.3]} 16. e4 {[%clk 0:02:14.5]}
16... e5 {[%clk 0:02:39.8]} 17. exd5 {[%clk 0:02:07.6]} 17... exd4 {[%clk
0:02:39.5]} 18. Qd3 {[%clk 0:02:07.6]} 18... cxd5 {[%clk 0:02:29.5]} 19. Rad1
{[%clk 0:01:44.8]} 19... dxc4 {[%clk 0:02:22.5]} 20. Nxc4 {[%clk 0:01:34.7]}
20... Bc5 {[%clk 0:02:22.4]} 21. a3 {[%clk 0:01:26.4]} 21... a6 {[%clk
0:02:20.1]} 22. b4 {[%clk 0:01:25.5]} 22... Ba7 {[%clk 0:02:20.6]} 23. Rfe1
{[%clk 0:01:14.5]} 23... Rxe1+ {[%clk 0:02:19]} 24. Rxe1 {[%clk 0:01:15.4]}
24... Re8 {[%clk 0:02:19.8]} 25. Rxe8+ {[%clk 0:01:09.8]} 25... Qxe8 {[%clk
0:02:20.7]} 26. Kf1 {[%clk 0:01:02.8]} 26... h6 {[%clk 0:02:12]} 27. Nd2 {[%clk
0:00:57.9]} 27... Nh5 {[%clk 0:02:02.9]} 28. Qf3 {[%clk 0:00:25.6]} 28... Qb5+
{[%clk 0:01:51.1]} 29. Ke1 {[%clk 0:00:26.1]} 29... Qe5+ {[%clk 0:01:47.1]} 30.
Qe4 {[%clk 0:00:24.1]} 30... Qxe4+ {[%clk 0:01:44.1]} 31. Nxe4 {[%clk 0:00:25]}
31... Nf4 {[%clk 0:01:44.9]} 32. Kd2 {[%clk 0:00:25.1]} 32... Nxg2 {[%clk
0:01:45]} 33. Nd6 {[%clk 0:00:25.7]} 33... b5 {[%clk 0:01:37.4]} 34. Nc8 {[%clk
0:00:25.8]} 34... Bb8 {[%clk 0:01:37.7]} 35. Bxd4 {[%clk 0:00:26.7]} 35... Nf4
{[%clk 0:01:38.1]} 36. h4 {[%clk 0:00:25.1]} 36... Ng6 {[%clk 0:01:38]} 37. h5
{[%clk 0:00:24.6]} 37... Nf4 {[%clk 0:01:38.1]} 38. Ne7+ {[%clk 0:00:25.1]}
38... Kf8 {[%clk 0:01:38.2]} 39. Nf5 {[%clk 0:00:25.4]} 39... Nxh5 {[%clk
0:01:37]} 40. Ke3 {[%clk 0:00:22.9]} 40... g6 {[%clk 0:01:36.6]} 41. Bc5+ {[%clk
0:00:19.9]} 41... Ke8 {[%clk 0:01:36.9]} 42. Nd4 {[%clk 0:00:18.9]} 42... Kd7
{[%clk 0:01:34.6]} 43. Nf3 {[%clk 0:00:18.4]} 43... Ng7 {[%clk 0:01:32.5]} 44.
Nd4 {[%clk 0:00:17.1]} 44... Be5 {[%clk 0:01:28.8]} 45. Nb3 {[%clk 0:00:15.3]}
45... Nf5+ {[%clk 0:01:28.7]} 46. Kd3 {[%clk 0:00:15.9]} 46... h5 {[%clk
0:01:27.5]} 47. Bf8 {[%clk 0:00:11.9]} 47... h4 {[%clk 0:01:25]} 48. Nc5+ {[%clk
0:00:11.4]} 48... Ke8 {[%clk 0:01:25.4]} 49. Ke4 {[%clk 0:00:05.5]} 49... Bh2
{[%clk 0:01:23.5]} 0-1

[Event "*** Titled Tuesday Blitz"]
[Site "Chess.com"]
[Date "2020.12.01"]
[Round "1"]
[White "vanea_03"]
[Black "DinaBelenkaya"]
[Result "0-1"]
[WhiteElo "2719"]
[BlackElo "2392"]
[TimeControl "180+1"]
[EndTime "10:06:46 PST"]
[Termination "DinaBelenkaya won by resignation"]

1. d4 {[%clk 0:03:00.9]} 1... d5 {[%clk 0:02:59.5]} 2. c4 {[%clk 0:03:01.1]}
2... dxc4 {[%clk 0:03:00.4]} 3. e3 {[%clk 0:03:01.1]} 3... Nf6 {[%clk
0:03:00.6]} 4. Bxc4 {[%clk 0:03:01.3]} 4... a6 {[%clk 0:02:57.8]} 5. Nf3 {[%clk
0:03:00.7]} 5... e6 {[%clk 0:02:58.1]} 6. O-O {[%clk 0:03:00.3]} 6... c5 {[%clk
0:02:58.6]} 7. dxc5 {[%clk 0:02:56.9]} 7... Bxc5 {[%clk 0:02:59.5]} 8. Be2
{[%clk 0:02:40.1]} 8... O-O {[%clk 0:02:48.4]} 9. Nbd2 {[%clk 0:02:35.8]} 9...
b6 {[%clk 0:02:45.2]} 10. Nb3 {[%clk 0:02:32.2]} 10... Be7 {[%clk 0:02:39.8]}
11. Qxd8 {[%clk 0:01:49.9]} 11... Rxd8 {[%clk 0:02:40.7]} 12. Ne5 {[%clk
0:01:47.8]} 12... Bb7 {[%clk 0:02:39.9]} 13. f3 {[%clk 0:01:46.7]} 13... Nbd7
{[%clk 0:02:39.3]} 14. Nc4 {[%clk 0:01:40.5]} 14... a5 {[%clk 0:02:37.3]} 15. a4
{[%clk 0:01:35.7]} 15... Ba6 {[%clk 0:02:37.2]} 16. Rf2 {[%clk 0:01:21.6]} 16...
Rac8 {[%clk 0:02:37]} 17. Na3 {[%clk 0:01:03.5]} 17... Bxe2 {[%clk 0:02:36]} 18.
Rxe2 {[%clk 0:01:04.4]} 18... Nc5 {[%clk 0:02:35.5]} 19. Nxc5 {[%clk 0:00:44]}
19... Bxc5 {[%clk 0:02:36.4]} 20. Re1 {[%clk 0:00:43.6]} 20... Bb4 {[%clk
0:02:35.6]} 21. Rf1 {[%clk 0:00:41.9]} 21... Bxa3 {[%clk 0:02:30.7]} 22. Rxa3
{[%clk 0:00:41.9]} 22... Rc2 {[%clk 0:02:31.6]} 23. Rb3 {[%clk 0:00:41.8]} 23...
Rdc8 {[%clk 0:02:31.1]} 24. Rc3 {[%clk 0:00:42.2]} 24... R8xc3 {[%clk
0:02:30.7]} 25. bxc3 {[%clk 0:00:43.1]} 25... Rxc3 {[%clk 0:02:31.5]} 26. e4
{[%clk 0:00:39.9]} 26... Kf8 {[%clk 0:02:22.8]} 27. Bf4 {[%clk 0:00:38.2]} 27...
Rc4 {[%clk 0:02:18.9]} 28. Ra1 {[%clk 0:00:34.6]} 28... Ke7 {[%clk 0:02:17.5]}
29. Be3 {[%clk 0:00:34.3]} 29... Rb4 {[%clk 0:02:16.9]} 30. Bd2 {[%clk
0:00:33.1]} 30... Rb3 {[%clk 0:02:15.9]} 31. Rc1 {[%clk 0:00:32.3]} 31... Kd7
{[%clk 0:02:10.9]} 32. Bf4 {[%clk 0:00:27.9]} 32... Ne8 {[%clk 0:02:10.2]} 33.
Rd1+ {[%clk 0:00:28.4]} 33... Ke7 {[%clk 0:02:08.7]} 34. Rc1 {[%clk 0:00:26.5]}
34... f6 {[%clk 0:02:06.1]} 35. Kf2 {[%clk 0:00:25.8]} 35... e5 {[%clk
0:02:06.2]} 36. Be3 {[%clk 0:00:26.3]} 36... Kd7 {[%clk 0:02:05.2]} 37. Rd1+
{[%clk 0:00:26.2]} 37... Nd6 {[%clk 0:02:05.4]} 38. g4 {[%clk 0:00:19.4]} 38...
Kc6 {[%clk 0:02:03.5]} 39. Rc1+ {[%clk 0:00:19.7]} 39... Kd7 {[%clk 0:02:03.1]}
40. h4 {[%clk 0:00:20.2]} 40... Rb4 {[%clk 0:02:02.7]} 41. h5 {[%clk 0:00:20.7]}
41... Nc4 {[%clk 0:01:59.6]} 42. Rd1+ {[%clk 0:00:18.8]} 42... Ke6 {[%clk
0:01:58.9]} 43. h6 {[%clk 0:00:11.7]} 43... Rb2+ {[%clk 0:01:58.8]} 44. Kg3
{[%clk 0:00:10.3]} 44... Nxe3 {[%clk 0:01:51.8]} 45. Rd6+ {[%clk 0:00:10.3]}
45... Kf7 {[%clk 0:01:47.4]} 46. Rd7+ {[%clk 0:00:10.8]} 46... Kg6 {[%clk
0:01:18.1]} 47. hxg7 {[%clk 0:00:10.6]} 47... Nf1+ {[%clk 0:01:17.1]} 0-1